bitfinex-derivatives/quotes_BNBF0:USTF0_20250116
["timestamp","ask_amount","ask_price","bid_price","bid_amount"]
[1737070457873,0.28191249,709.44,708.4,1.05378442]
[1737070458776,0.28191249,709.44,708.43,1.05378442]
[1737070459480,0.28191249,709.44,708.41,1.05378442]
[1737070460574,0.28191249,709.44,708.36,1.05378442]
[1737070461686,0.28191249,709.44,708.42,1.05378442]
[1737070463177,0.28191249,709.44,708.23,1.05378442]
[1737070464985,0.28191249,709.44,708.21,1.05378442]
[1737070465883,0.28191249,709.44,707.31,1.26505737]
[1737070465884,0.28191249,709.44,708.22,0.28239812]
[1737070470984,0.28191249,709.44,708.23,0.25922728]
[1737070471184,0.28191249,709.44,708.22,0.28239812]
[1737070471389,0.28191249,709.44,708.23,0.25922684]
[1737070471591,0.28191249,709.44,708.34,1.05378442]
[1737070471790,0.28191249,709.44,708.35,0.25922751]
[1737070472789,0.28191249,709.44,708.36,0.25922751]
[1737070472989,0.28191249,709.44,708.37,0.25922751]
[1737070473184,0.28191249,709.44,708.38,0.25922751]
[1737070473490,0.28191249,709.44,708.22,0.28239812]
[1737070473491,0.28191249,709.44,708.41,1.05378442]
[1737070473691,0.28191249,709.44,708.42,0.25922807]
[1737070475997,0.28191249,709.44,708.43,0.25922807]
[1737070476196,0.28191249,709.44,708.44,0.25922807]
[1737070476497,0.28191249,709.44,708.45,0.25922807]
[1737070476696,0.28191249,709.44,708.4,1.05378442]
[1737070476697,0.28191249,709.44,708.46,0.25922807]
[1737070476897,0.28191249,709.44,708.47,0.25922807]
[1737070477199,0.28191249,709.44,708.48,0.25922807]
[1737070477397,0.28191249,709.44,708.4,1.05378442]
[1737070477398,0.28191249,709.44,708.49,0.25922856]
[1737070477700,0.28191249,709.44,708.5,0.25922575]
[1737070477892,0.28191249,709.44,708.39,1.05378442]
[1737070478096,0.28191249,709.44,708.4,0.2592256]
[1737070478597,0.28191249,709.44,708.41,1.05378442]
[1737070478796,0.28191249,709.44,708.42,0.2592256]
[1737070479894,0.28191249,709.44,708.43,0.2592256]
[1737070480199,0.28191249,709.44,708.44,0.2592256]
[1737070480399,0.28191249,709.44,708.45,0.2592256]
[1737070480700,0.28191249,709.44,708.46,0.2592256]
[1737070480896,0.28191249,709.44,708.39,1.05378442]
[1737070481097,0.28191249,709.44,708.4,0.25922977]
[1737070481796,0.28191249,709.44,708.41,0.25922967]
[1737070482002,0.28191249,709.44,708.39,0.25922967]
[1737070482302,0.28191249,709.44,708.4,0.25922967]
[1737070482502,0.28191249,709.44,708.41,1.31301409]
[1737070482802,0.28191249,709.44,708.42,0.25922967]
[1737070483599,0.28191249,709.44,708.43,1.05378442]
[1737070483799,0.28191249,709.44,708.44,0.25922967]
[1737070484402,0.28191249,709.44,708.45,0.25922938]
[1737070484703,0.28191249,709.44,708.46,0.25922938]
[1737070484902,0.28191249,709.44,708.47,0.25922938]
[1737070485103,0.28191249,709.44,708.48,0.25922938]
[1737070485303,0.28191249,709.44,708.49,0.25922938]
[1737070485503,0.28191249,709.44,708.5,0.25922938]
[1737070485697,0.28191249,709.44,708.51,0.25922938]
[1737070485904,0.28191249,709.44,708.45,1.05378442]
[1737070486105,0.28191249,709.44,708.46,0.2592276]
[1737070486309,0.28191249,709.44,708.47,1.05378442]
[1737070486506,0.28191249,709.44,708.48,0.2592276]
[1737070487806,0.28191249,709.44,708.47,1.05378442]
[1737070488007,0.28191249,709.44,708.48,0.25922694]
[1737070488411,0.28191249,709.44,708.49,1.05378442]
[1737070488613,0.28191249,709.44,708.5,0.25922694]
[1737070489515,0.28191249,709.44,708.5,1.31301136]
[1737070489715,0.28191249,709.44,708.51,0.25922694]
[1737070490115,0.28191249,709.44,708.52,0.25921751]
[1737070490414,0.28191249,709.44,708.5,1.05378442]
[1737070490415,0.28191249,709.44,708.53,0.25921751]
[1737070490615,0.28191249,709.44,708.54,0.25921751]
[1737070490815,0.28191249,709.44,708.58,1.05378442]
[1737070491014,0.28191249,709.44,708.59,0.25921751]
[1737070491215,0.28191249,709.44,708.58,1.05378442]
[1737070491615,0.28191249,709.44,708.59,0.25921368]
[1737070491920,0.28191249,709.44,708.63,1.05378442]
[1737070493318,0.28191249,709.44,708.67,1.05378442]
[1737070494315,0.28191249,709.44,708.69,1.05378442]
[1737070495314,0.28191249,709.44,708.71,1.05378442]
[1737070496421,0.28191249,709.44,708.23,0.75593368]
[1737070496422,0.28191249,709.44,708.77,1.05378442]
[1737070497520,0.28191249,709.44,708.79,1.05378442]
[1737070498622,0.28191249,709.44,708.77,1.05378442]
[1737070499825,0.28191249,709.44,708.78,1.05378442]
[1737070500621,1.05641149,709.85,708.78,1.05378442]
[1737070500919,0.28175363,709.84,708.78,1.05378442]
[1737070501119,0.28175363,709.84,708.46,1.05378442]
[1737070501925,0.28175363,709.84,708.45,1.05378442]
[1737070503026,0.28175363,709.84,708.44,1.05378442]
[1737070503829,0.28175363,709.84,708.49,1.05378442]
[1737070504735,0.28175363,709.84,708.57,1.05378442]
[1737070506130,0.28175363,709.84,708.56,1.05378442]
[1737070506834,0.28175363,709.84,708.57,0.25919049]
[1737070507634,0.28175363,709.84,708.72,1.05378442]
[1737070510931,0.28175363,709.84,708.78,1.05378442]
[1737070512836,0.28175363,709.84,708.77,1.05378442]
[1737070513840,0.28175363,709.84,708.74,1.05378442]
[1737070514740,0.28175363,709.84,708.75,1.05378442]
[1737070517035,0.28175363,709.84,708.77,1.05378442]
[1737070517940,0.28175363,709.84,708.74,1.05378442]
[1737070518637,0.28175363,709.84,708.73,1.05378442]
[1737070521443,0.28175363,709.84,708.65,1.05378442]
[1737070522542,0.28175363,709.84,708.23,0.75637941]
[1737070522543,0.28175363,709.84,708.64,1.05378442]
[1737070524043,0.28175363,709.84,708.66,1.05378442]
[1737070524840,0.28175363,709.84,708.64,1.05378442]
[1737070525845,0.28175363,709.84,708.65,1.05378442]
[1737070526641,0.28175363,709.84,708.66,1.05378442]
[1737070527645,0.28175363,709.84,708.65,1.05378442]
[1737070530846,0.28175363,709.84,708.69,1.05378442]
[1737070532154,0.28175363,709.84,708.74,1.05378442]
[1737070532953,0.28175363,709.84,708.73,1.05378442]
[1737070534253,0.28175363,709.84,708.76,1.05378442]
[1737070535253,0.28175363,709.84,708.66,1.05378442]
[1737070537251,0.28175363,709.84,708.67,1.05378442]
[1737070538453,0.28175363,709.84,708.23,0.75637941]
[1737070538454,0.28175363,709.84,708.66,1.05378442]
[1737070540557,0.28175363,709.84,708.67,1.05378442]
[1737070541561,0.28175363,709.84,708.69,1.05378442]
[1737070542364,0.28175363,709.84,708.57,1.05378442]
[1737070543161,0.28175363,709.84,708.58,1.05378442]
[1737070544066,0.28175363,709.84,708.22,0.28239812]
[1737070544067,0.28175363,709.84,708.61,1.05378442]
[1737070545068,0.28175363,709.84,708.62,1.05378442]
[1737070546869,0.28175363,709.84,708.63,1.05378442]
[1737070552172,0.28175363,709.84,708.72,1.05378442]
[1737070553280,0.28175363,709.84,708.75,1.05378442]
[1737070554173,0.28175363,709.84,708.73,1.05378442]
[1737070555379,0.28175363,709.84,708.72,1.05378442]
[1737070556481,0.28175363,709.84,708.63,1.05378442]
[1737070557382,0.28175363,709.84,708.64,1.05378442]
[1737070561686,0.28175363,709.84,708.54,1.05378442]
[1737070562888,0.28175363,709.84,708.5,1.05378442]
[1737070563889,0.28175363,709.84,708.52,1.05378442]
[1737070564886,0.28175363,709.84,708.5,1.05378442]
[1737070565983,0.28175363,709.84,708.65,1.05378442]
[1737070567190,0.28175363,709.84,708.59,1.05378442]
[1737070568091,0.28175363,709.84,708.58,1.05378442]
[1737070569390,0.28175363,709.84,708.23,1.81139847]
[1737070569391,0.28175363,709.84,708.59,1.05378442]
[1737070570292,0.28175363,709.84,708.56,1.05378442]
[1737070573195,0.28175363,709.84,708.55,1.05378442]
[1737070574190,0.28175363,709.84,708.52,1.05378442]
[1737070574995,0.28175363,709.84,708.51,1.05378442]
[1737070576696,0.28175363,709.84,708.5,1.05378442]
[1737070580898,0.28175363,709.84,708.46,1.05378442]
[1737070581795,0.28175363,709.84,708.48,1.05378442]
[1737070587100,0.28175363,709.84,708.49,1.05378442]
[1737070587899,0.28175363,709.84,708.5,1.05378442]
[1737070593705,0.28175363,709.84,708.49,1.05378442]
[1737070594413,0.28175363,709.84,708.52,1.05378442]
[1737070595405,0.28175363,709.84,699.54,4.94693907]
[1737070595406,1.05641149,709.7,707.64,1.05378442]
[1737070595598,0.28184892,709.6,707.64,1.05378442]
[1737070596306,0.28184892,709.6,707.37,1.05378442]
[1737070596605,0.28184892,709.6,707.38,0.54223931]
[1737070596805,0.28184892,709.6,707.37,1.05378442]
[1737070596806,0.28184892,709.6,707.39,0.28272947]
[1737070597203,0.28184892,709.6,707.4,0.25950447]
[1737070597404,0.28184892,709.6,707.41,0.28272147]
[1737070597605,0.28184892,709.6,707.42,0.25949785]
[1737070597806,0.28184892,709.6,707.43,0.28271348]
[1737070598004,0.28184892,709.6,707.44,0.25949785]
[1737070598206,0.28184892,709.6,707.45,0.54218679]
[1737070598408,0.28184892,709.6,707.45,0.28270549]
[1737070599412,0.28184892,709.6,707.46,0.2594924]
[1737070599608,0.28184892,709.6,707.47,0.28269749]
[1737070600012,0.28184892,709.6,707.48,0.25948687]
[1737070600212,0.28184892,709.6,707.49,0.2826895]
[1737070600412,0.28184892,709.6,707.5,0.25948764]
[1737070600609,0.28184892,709.6,707.51,0.28268151]
[1737070600918,0.28184892,709.6,707.52,0.25948764]
[1737070601113,0.28184892,709.6,707.53,0.28267352]
[1737070601309,0.28184892,709.6,707.54,0.25948764]
[1737070601513,0.28184892,709.6,707.55,0.28266553]
[1737070601716,0.28184892,709.6,707.56,0.25948348]
[1737070601915,0.28184892,709.6,707.56,0.54214502]
[1737070602109,0.28184892,709.6,707.57,0.25948348]
[1737070602514,0.28184892,709.6,707.56,0.28266154]
[1737070602716,0.28184892,709.6,707.57,0.25949853]
[1737070603010,0.28184892,709.6,707.56,0.28266154]
[1737070603413,0.28184892,709.6,707.57,0.25949191]
[1737070603815,0.28184892,709.6,707.56,0.28266154]
[1737070604015,0.28184892,709.6,707.57,0.2594898]
[1737070606513,0.28184892,709.6,707.58,0.25949611]
[1737070606815,0.28184892,709.6,707.59,0.25949611]
[1737070607013,0.28184892,709.6,707.6,0.25949611]
[1737070607213,0.28184892,709.6,707.61,0.25949611]
[1737070607419,0.28184892,709.6,707.62,0.25949611]
[1737070607617,0.28184892,709.6,707.63,0.25949611]
[1737070607819,0.28184892,709.6,707.56,0.28266154]
[1737070617620,0.28184892,709.6,707.57,0.2594904]
[1737070618226,0.28184892,709.6,707.58,0.25949031]
[1737070618424,0.28184892,709.6,707.59,0.25949031]
[1737070618627,0.28184892,709.6,707.56,0.28266154]
[1737070618828,0.28184892,709.6,707.57,0.25949043]
[1737070620323,0.28184892,709.6,707.56,0.28266154]
[1737070620528,0.28184892,709.6,707.57,0.25948549]
[1737070620728,0.28184892,709.6,707.58,0.28265355]
[1737070620927,0.28184892,709.6,707.59,0.25948549]
[1737070621129,0.28184892,709.6,707.6,0.28264556]
[1737070621430,0.28184892,709.6,707.61,0.25948549]
[1737070621622,0.28184892,709.6,707.62,0.28263757]
[1737070621927,0.28184892,709.6,707.63,0.25948549]
[1737070622327,0.28184892,709.6,707.64,0.25945728]
[1737070622529,0.28184892,709.6,707.62,0.28263757]
[1737070622530,0.28184892,709.6,707.65,0.25945728]
[1737070622724,0.28184892,709.6,707.66,0.25945728]
[1737070622929,0.28184892,709.6,707.67,0.25945728]
[1737070623227,0.28184892,709.6,707.68,0.25945728]
[1737070623427,0.28184892,709.6,707.69,0.25945728]
[1737070623630,0.28184892,709.6,707.7,0.25945728]
[1737070623828,0.28184892,709.6,707.62,0.28263757]
[1737070623829,0.28184892,709.6,707.71,0.25945728]
[1737070624031,0.28184892,709.6,707.72,0.25945728]
[1737070624227,0.28184892,709.6,707.73,0.25945728]
[1737070624430,0.28184892,709.6,707.74,0.25945728]
[1737070624624,0.28184892,709.6,707.75,0.25945728]
[1737070624827,0.28184892,709.6,707.76,0.25945728]
[1737070625029,0.28184892,709.6,707.77,0.25944629]
[1737070625226,0.28184892,709.6,707.78,0.25944629]
[1737070625532,0.28184892,709.6,707.79,0.25944629]
[1737070625731,0.28184892,709.6,707.8,0.25944629]
[1737070625931,0.28184892,709.6,707.81,0.25944629]
[1737070626131,0.28184892,709.6,707.82,0.25944629]
[1737070626332,0.28184892,709.6,707.83,0.25944629]
[1737070626533,0.28184892,709.6,707.84,0.25944629]
[1737070626833,0.28184892,709.6,707.79,1.05378442]
[1737070626834,0.28184892,709.6,707.85,0.25944629]
[1737070627033,0.28184892,709.6,707.86,0.25944629]
[1737070627233,0.28184892,709.6,707.87,0.25944629]
[1737070627429,0.28184892,709.6,707.97,1.05378442]
[1737070627633,0.28184892,709.6,707.98,0.25944629]
[1737070627929,0.28184892,709.6,707.99,0.25939378]
[1737070628134,0.28184892,709.6,708.0,0.25939378]
[1737070628330,0.28184892,709.6,708.01,0.25939378]
[1737070628529,0.28184892,709.6,708.07,1.05378442]
[1737070628729,0.28184892,709.6,708.08,0.25939378]
[1737070629436,0.28184892,709.6,708.07,1.05378442]
[1737070629630,0.28184892,709.6,708.2,1.05378442]
[1737070630336,0.28184892,709.6,708.21,1.05378442]
[1737070631432,0.28184892,709.6,708.17,1.05378442]
[1737070632531,0.28184892,709.6,707.63,2.02122979]
[1737070632532,0.28184892,709.6,708.15,1.05378442]
[1737070633735,0.28184892,709.6,708.12,1.05378442]
[1737070635037,0.28184892,709.6,708.11,1.05378442]
[1737070635636,0.28184892,709.6,708.09,1.05378442]
[1737070636534,0.28184892,709.6,708.1,0.25938306]
[1737070637835,0.28184892,709.6,708.12,1.05378442]
[1737070638637,0.28184892,709.6,708.06,1.05378442]
[1737070638938,0.28184892,709.6,708.07,0.259389]
[1737070639639,0.28184892,709.6,708.09,1.05378442]
[1737070639840,0.28184892,709.6,708.1,0.259389]
[1737070641033,0.28184892,709.6,707.79,1.05421447]
[1737070641034,0.28184892,709.6,708.06,1.05378442]
[1737070641232,0.28184892,709.6,708.07,0.25939342]
[1737070641434,0.28184892,709.6,708.08,0.25939553]
[1737070641639,0.28184892,709.6,708.09,0.25939553]
[1737070641841,0.28184892,709.6,708.06,1.05378442]
[1737070642142,0.28184892,709.6,708.07,0.25938622]
[1737070642339,0.28184892,709.6,708.08,0.25938622]
[1737070642538,0.28184892,709.6,708.09,0.25938622]
[1737070642734,0.28184892,709.6,708.1,0.25938622]
[1737070642937,0.28184892,709.6,708.11,0.25938622]
[1737070643138,0.28184892,709.6,708.12,0.25938622]
[1737070643335,0.28184892,709.6,708.07,1.05378442]
[1737070643536,0.28184892,709.6,708.08,0.25938411]
[1737070644040,0.28184892,709.6,708.09,0.25938411]
[1737070644243,0.28184892,709.6,708.1,0.2593889]
[1737070644444,0.28184892,709.6,708.06,1.05378442]
[1737070644647,0.28184892,709.6,708.07,0.25939421]
[1737070644865,0.28184892,709.6,708.08,0.25939421]
[1737070645038,0.28184892,709.6,708.09,0.25939421]
[1737070645241,0.28184892,709.6,708.1,0.2593925]
[1737070645437,0.28184892,709.6,708.04,1.05378442]
[1737070645640,0.28184892,709.6,708.05,0.25938493]
[1737070646435,0.28184892,709.6,708.05,1.31316935]
[1737070646636,0.28184892,709.6,708.06,0.25938493]
[1737070646843,0.28184892,709.6,708.05,1.05378442]
[1737070647139,0.28184892,709.6,708.06,0.25939622]
[1737070647541,0.28184892,709.6,708.07,0.25939622]
[1737070647742,0.28184892,709.6,708.08,0.25939622]
[1737070647942,0.28184892,709.6,708.09,0.25939622]
[1737070648145,0.28184892,709.6,708.1,0.25939622]
[1737070648342,0.28184892,709.6,708.11,0.25939622]
[1737070648538,0.28184892,709.6,708.12,0.25939622]
[1737070648742,0.28184892,709.6,708.08,1.05378442]
[1737070648936,0.28184892,709.6,708.09,0.25939383]
[1737070649747,0.28184892,709.6,708.1,0.25938486]
[1737070649942,0.28184892,709.6,708.11,0.25938486]
[1737070650143,0.28184892,709.6,708.12,0.25938486]
[1737070650445,0.28184892,709.6,708.13,0.25938486]
[1737070650644,0.28184892,709.6,708.14,0.25938486]
[1737070650841,0.28184892,709.6,708.08,1.05378442]
[1737070651146,0.28184892,709.6,708.11,1.05378442]
[1737070651345,0.28184892,709.6,708.12,0.25938406]
[1737070651845,1.05641149,709.58,708.12,0.25938406]
[1737070652147,1.05641149,709.58,708.11,1.05378442]
[1737070652545,0.28186481,709.56,708.11,1.05378442]
[1737070653047,0.28186481,709.56,708.09,1.05378442]
[1737070654145,0.28186481,709.56,708.12,1.05378442]
[1737070654846,0.28186481,709.56,708.15,1.05378442]
[1737070655946,0.28186481,709.56,708.16,1.05378442]
[1737070656740,0.28186481,709.56,708.18,1.05378442]
[1737070658645,0.28186481,709.56,708.19,1.05378442]
[1737070660346,0.28186481,709.56,708.22,1.05378442]
[1737070662648,0.28186481,709.56,708.29,1.05378442]
[1737070663851,0.28186481,709.56,708.34,1.05378442]
[1737070665051,0.28186481,709.56,708.32,1.05378442]
[1737070665946,0.28186481,709.56,708.29,1.05378442]
[1737070667053,0.28186481,709.56,708.26,1.05378442]
[1737070668051,1.05641149,709.26,707.72,1.05378442]
[1737070668253,0.28199199,709.24,707.72,1.05378442]
[1737070669150,0.28199199,709.24,707.53,1.05378442]
[1737070670256,0.28199199,709.24,707.37,1.05378442]
[1737070671357,0.28199199,709.24,707.27,1.05378442]
[1737070672554,0.28199199,709.24,707.23,1.05378442]
[1737070673357,0.28199199,709.24,707.16,1.05378442]
[1737070674558,0.28199199,709.24,707.15,1.05378442]
[1737070675654,0.28199199,709.24,707.13,1.05378442]
[1737070676759,0.28199199,709.24,707.1,1.05378442]
[1737070677559,0.28199199,709.24,707.11,1.05378442]
[1737070678357,0.28199199,709.24,707.09,1.05378442]
[1737070679860,0.28199199,709.24,707.03,1.05378442]
[1737070680956,0.28199199,709.24,707.05,1.05378442]
[1737070681761,0.28199199,709.24,707.04,1.05378442]
[1737070682562,0.28199199,709.24,707.06,1.05378442]
[1737070683563,0.28199199,709.24,706.07,2.15235455]
[1737070683564,0.28199199,709.24,707.07,1.05378442]
[1737070685167,0.28199199,709.24,707.04,1.05378442]
[1737070686165,0.28199199,709.24,707.06,1.05378442]
[1737070686964,0.28199199,709.24,707.07,1.05378442]
[1737070688269,0.28199199,709.24,707.08,0.60872135]
[1737070688765,0.28199199,709.24,707.17,1.05378442]
[1737070689971,0.28199199,709.24,707.18,1.05378442]
[1737070690767,0.28199199,709.24,707.19,1.05378442]
[1737070691872,0.28199199,709.24,707.2,1.05378442]
[1737070692870,0.28199199,709.24,706.94,1.05421447]
[1737070692871,0.28199199,709.24,707.21,1.05378442]
[1737070693468,0.28199199,709.24,707.63,0.25951904]
[1737070693773,0.28199199,709.24,707.21,1.05378442]
[1737070693974,0.28199199,709.24,704.26,4.69149708]
[1737070693975,0.28199199,709.24,707.24,1.05378442]
[1737070694577,0.28199199,709.24,707.63,0.25951577]
[1737070694877,0.28199199,709.24,707.24,1.05378442]
[1737070695074,0.28199199,709.24,707.28,1.05378442]
[1737070695974,0.28199199,709.24,707.21,1.05378442]
[1737070696879,0.28199199,709.24,707.15,1.05378442]
[1737070697582,0.28199199,709.24,707.16,1.05378442]
[1737070698579,0.28199199,709.24,707.2,1.05378442]
[1737070699574,0.28199199,709.24,707.28,1.05378442]
[1737070700282,0.28199199,709.24,707.35,1.05378442]
[1737070701079,0.28199199,709.24,707.45,1.05378442]
[1737070702383,0.28199199,709.24,707.64,1.05378442]
[1737070703277,0.28199199,709.24,707.69,1.05378442]
[1737070704680,0.28199199,709.24,707.74,1.05378442]
[1737070705580,0.28199199,709.24,707.71,1.05378442]
[1737070706581,0.28199199,709.24,707.76,1.05378442]
[1737070707378,0.28199199,709.24,707.77,1.05378442]
[1737070708781,0.28199199,709.24,707.78,1.05378442]
[1737070709689,0.28199199,709.24,707.77,1.05378442]
[1737070711185,0.28199199,709.24,707.84,1.05378442]
[1737070713291,0.28199199,709.24,707.89,1.05378442]
[1737070714244,0.28199199,709.24,707.91,1.05378442]
[1737070716300,0.28199199,709.24,707.82,1.05378442]
[1737070718098,0.28199199,709.24,707.81,1.05378442]
[1737070719200,0.28199199,709.24,707.8,1.05378442]
[1737070726208,0.28199199,709.24,707.87,1.05378442]
[1737070727406,0.28199199,709.24,707.88,1.05378442]
[1737070728409,0.28199199,709.24,707.9,1.05378442]
[1737070729211,0.28199199,709.24,707.92,1.05378442]
[1737070732315,0.28199199,709.24,707.96,1.05378442]
[1737070733117,0.28199199,709.24,708.01,1.05378442]
[1737070733916,0.28199199,709.24,708.02,1.05378442]
[1737070735216,0.28199199,709.24,707.63,0.75856069]
[1737070735217,0.28199199,709.24,708.03,1.05378442]
[1737070736317,0.28199199,709.24,707.63,0.75856069]
[1737070736318,0.28199199,709.24,708.05,1.05378442]
[1737070737121,0.28199199,709.24,708.04,1.05378442]
[1737070737122,1.05641149,709.18,708.04,1.05378442]
[1737070737321,0.28201982,709.17,708.04,1.05378442]
[1737070738119,0.28201982,709.17,707.63,0.75856069]
[1737070738120,0.28201982,709.17,708.07,1.05378442]
[1737070738920,1.33843131,709.17,708.05,1.05378442]
[1737070739920,0.28201982,709.17,708.07,1.05378442]
[1737070740716,0.28201982,709.17,707.63,0.75856069]
[1737070740717,0.28201982,709.17,708.04,1.05378442]
[1737070743631,0.28201982,709.17,707.63,0.75856069]
[1737070743632,0.28201982,709.17,708.05,1.05378442]
[1737070744931,0.28201982,709.17,708.06,1.05378442]
[1737070745627,0.28201982,709.17,708.03,1.05378442]
[1737070750729,0.28201982,709.17,707.63,0.75856069]
[1737070750730,0.28201982,709.17,708.04,1.05378442]
[1737070752933,0.28201982,709.17,708.01,1.05378442]
[1737070753933,0.28201982,709.17,708.03,1.05378442]
[1737070755939,0.28201982,709.17,707.63,0.75856069]
[1737070755940,0.28201982,709.17,708.04,1.05378442]
[1737070756839,0.28201982,709.17,708.05,1.05378442]
[1737070758741,0.28201982,709.17,708.06,1.05378442]
[1737070759638,0.28201982,709.17,708.03,1.05378442]
[1737070760338,0.28201982,709.17,708.04,1.05378442]
[1737070761343,0.28201982,709.17,708.06,1.05378442]
[1737070762439,0.28201982,709.17,708.08,1.05378442]
[1737070763346,0.28201982,709.17,708.13,1.05378442]
[1737070764245,0.28201982,709.17,708.1,1.05378442]
[1737070766046,0.28201982,709.17,708.11,1.05378442]
[1737070768151,0.28201982,709.17,708.1,1.05378442]
[1737070769647,0.28201982,709.17,708.14,1.05378442]
[1737070771649,0.28201982,709.17,708.03,1.05378442]
[1737070772852,0.28201982,709.17,707.63,1.81277516]
[1737070772853,0.28201982,709.17,708.07,1.05378442]
[1737070774053,0.28201982,709.17,708.04,1.05378442]
[1737070776356,0.28201982,709.17,708.0,1.05378442]
[1737070777152,0.28201982,709.17,707.99,1.05378442]
[1737070778557,0.28201982,709.17,707.98,1.05378442]
[1737070779252,0.28201982,709.17,707.82,1.05378442]
[1737070780951,0.28201982,709.17,707.83,1.05378442]
[1737070781754,0.28201982,709.17,707.86,1.05378442]
[1737070782659,0.28201982,709.17,707.87,1.05378442]
[1737070784962,0.28201982,709.17,707.89,1.05378442]
[1737070785757,0.28201982,709.17,707.92,1.05378442]
[1737070786763,0.28201982,709.17,707.93,1.05378442]
[1737070787564,0.28201982,709.17,707.94,1.05378442]
[1737070787760,0.28201982,709.17,707.95,0.25941578]
[1737070788866,0.28201982,709.17,708.13,1.05378442]
[1737070792067,0.28201982,709.17,708.14,1.05378442]
[1737070794269,0.28201982,709.17,708.15,1.05378442]
[1737070796672,0.28201982,709.17,708.14,1.05378442]
[1737070796972,0.28201982,709.17,707.8,1.05421447]
[1737070796973,0.28201982,709.17,707.63,0.75781937]
[1737070797272,0.28201982,709.17,707.65,0.28262559]
[1737070797472,0.28201982,709.17,707.66,0.86780055]
[1737070797670,0.28201982,709.17,708.13,1.05557288]
[1737070798872,0.28201982,709.17,708.11,1.05557288]
[1737070800272,0.28201982,709.17,708.09,1.05557288]
[1737070801271,0.28201982,709.17,708.1,1.05557288]
[1737070802066,0.28201982,709.17,708.12,1.05557288]
[1737070803172,0.28201982,709.17,707.69,0.75781937]
[1737070803173,0.28201982,709.17,708.14,1.05557288]
[1737070806673,0.28201982,709.17,708.12,1.05557288]
[1737070808675,0.28201982,709.17,707.82,1.05557288]
[1737070808676,0.28201982,709.17,708.13,1.05557288]
[1737070809268,0.28201982,709.17,708.02,1.05557288]
[1737070810176,0.28201982,709.17,708.01,1.05557288]
[1737070810974,0.28201982,709.17,708.0,1.05557288]
[1737070814176,0.28201982,709.17,708.01,1.05557288]
[1737070815276,0.28201982,709.17,708.02,1.05557288]
[1737070816077,0.28201982,709.17,708.03,1.05557288]
[1737070818079,0.28201982,709.17,708.04,1.05557288]
[1737070818874,0.28201982,709.17,708.05,0.25941282]
[1737070819080,0.28201982,709.17,708.17,1.05557288]
[1737070820478,0.28201982,709.17,708.15,1.05557288]
[1737070821677,0.28201982,709.17,707.54,2.15512798]
[1737070821678,0.28201982,709.17,707.47,1.05557288]
[1737070822781,0.28201982,709.17,707.27,1.05557288]
[1737070823885,0.28201982,709.17,707.03,1.05557288]
[1737070824886,0.28201982,709.17,706.96,1.05557288]
[1737070825685,0.28201982,709.17,706.98,0.28289343]
[1737070825887,0.28201982,709.17,706.99,0.25960951]
[1737070826086,0.28201982,709.17,707.01,0.28288143]
[1737070826287,0.28201982,709.17,707.02,0.25960951]
[1737070826486,0.28201982,709.17,707.04,0.28286942]
[1737070826686,0.28201982,709.17,707.05,0.25960951]
[1737070826987,0.28201982,709.17,707.07,0.28285742]
[1737070827188,0.28201982,709.17,707.08,0.25960951]
[1737070827487,0.28201982,709.17,707.09,0.28284942]
[1737070827681,0.28201982,709.17,707.1,0.25960951]
[1737070827886,0.28201982,709.17,707.11,0.54244814]
[1737070828087,0.28201982,709.17,707.12,0.54244414]
[1737070828289,0.28201982,709.17,707.13,0.54244014]
[1737070828586,0.28201982,709.17,707.14,0.5424346]
[1737070828782,0.28201982,709.17,707.15,0.5424306]
[1737070828988,0.28201982,709.17,707.16,0.5424266]
[1737070829281,0.28201982,709.17,707.17,0.5424226]
[1737070829486,0.28201982,709.17,707.18,0.5424186]
[1737070829687,0.28201982,709.17,706.89,1.05557288]
[1737070829688,0.28201982,709.17,707.19,0.5424146]
[1737070829882,0.28201982,709.17,707.2,0.5424106]
[1737070830081,0.28201982,709.17,707.21,0.28280143]
[1737070832386,0.28201982,709.17,707.22,0.25959858]
[1737070832689,0.28201982,709.17,707.23,0.28279343]
[1737070832892,0.28201982,709.17,707.24,0.25959858]
[1737070833089,0.28201982,709.17,707.25,0.28278543]
[1737070833285,0.28201982,709.17,707.26,0.25959858]
[1737070833491,0.28201982,709.17,707.27,0.25959942]
[1737070833790,0.28201982,709.17,707.28,0.25960013]
[1737070834090,0.28201982,709.17,707.29,0.25960013]
[1737070834288,0.28201982,709.17,707.3,0.25960013]
[1737070834495,0.28201982,709.17,707.31,0.25960013]
[1737070834687,0.28201982,709.17,707.32,0.25960013]
[1737070834891,0.28201982,709.17,707.33,0.25960013]
[1737070835090,0.28201982,709.17,707.34,0.25960013]
[1737070835285,0.28201982,709.17,707.35,0.25960013]
[1737070835492,0.28201982,709.17,707.36,0.25960013]
[1737070835685,0.28201982,709.17,707.37,0.25959741]
[1737070835993,0.28201982,709.17,707.38,0.25959722]
[1737070836191,0.28201982,709.17,707.26,0.28278143]
[1737070836389,0.28201982,709.17,707.27,0.25960357]
[1737070838993,0.28201982,709.17,707.26,0.28278143]
[1737070839193,0.28201982,709.17,707.27,0.2595971]
[1737070839991,0.28201982,709.17,707.28,0.28277344]
[1737070840196,0.28201982,709.17,707.29,0.2595971]
[1737070841799,0.28201982,709.17,707.3,0.25959447]